bitfinex/quotes_ETHUSD_20250217
["timestamp","ask_amount","ask_price","bid_price","bid_amount"]
[1739793843364,3.61786,2764.1,2763.5,3.38215498]
[1739793843365,3.61787,2764.1,2763.5,3.38215498]
[1739793843660,3.61787,2764.1,2763.6,1.0465]
[1739793843865,1.1013,2764.2,2763.8,3.38215498]
[1739793844032,3.6176,2764.3,2763.8,3.82863841]
[1739793844419,3.6176,2764.3,2763.8,7.44675841]
[1739793844623,3.61731,2764.5,2764.1,3.38215498]
[1739793845037,3.61761,2764.3,2763.9,1.0201]
[1739793845254,3.61807,2763.9,2763.6,9.8901]
[1739793845456,3.61826,2763.8,2763.6,8.87]
[1739793845660,1.0748,2764.0,2763.2,3.38215498]
[1739793845661,3.61851,2763.6,2763.2,3.38215498]
[1739793845986,3.61851,2763.6,2763.2,4.85132548]
[1739793846787,3.61922,2763.1,2762.8,1.0406]
[1739793846990,1.0615,2763.8,2762.8,1.0406]
[1739793846991,3.61911,2763.2,2762.8,1.0406]
[1739793847589,3.61859,2763.6,2763.0,3.6192]
[1739793847888,3.61859,2763.6,2763.1,0.36192]
[1739793848074,3.61841,2763.7,2763.2,3.61897]
[1739793848275,3.61837,2763.7,2763.2,1.1092]
[1739793848588,3.61821,2763.8,2763.3,3.61883]
[1739793848778,3.61838,2763.7,2763.2,1.1092]
[1739793848963,3.61838,2763.7,2763.3,0.509014]
[1739793849377,4.74254,2764.1,2763.4,3.61861]
[1739793849581,3.61798,2764.0,2763.4,3.61861]
[1739793849780,1.1247,2764.1,2763.4,3.61861]
[1739793849979,3.61769,2764.2,2763.8,1.0812]
[1739793850185,3.61763,2764.3,2763.8,1.8893675]
[1739793850765,3.61771,2764.2,2763.8,1.8893675]
[1739793850969,3.61763,2764.3,2763.8,1.8893675]
[1739793850970,3.61782,2764.1,2763.8,1.8893675]
[1739793851171,3.61799,2764.0,2763.8,0.8081675]
[1739793852094,3.61782,2764.1,2763.8,0.8081675]
[1739793852896,3.61762,2764.3,2763.8,0.8081675]
[1739793853077,3.61762,2764.3,2763.8,4.4262975]
[1739793853263,4.69775,2764.5,2763.9,7.84082476]
[1739793853469,4.69775,2764.5,2763.9,7.80464773]
[1739793853920,3.6175,2764.4,2763.9,7.80464773]
[1739793854053,1.0287,2764.8,2764.0,1.0927]
[1739793854259,1.0287,2764.8,2763.7,8.2887]
[1739793854260,3.61766,2764.3,2763.7,8.2887]
[1739793854459,3.61782,2764.1,2763.8,1.1670855]
[1739793854660,8.30583,2764.3,2763.7,9.9222]
[1739793854882,4.68816,2764.3,2763.7,9.9222]
[1739793855084,1.0663,2764.6,2763.7,9.9222]
[1739793855399,3.61741,2764.5,2764.0,3.6179]
[1739793855597,3.61741,2764.5,2763.9,7.00011498]
[1739793855799,3.61741,2764.5,2763.9,9.05417148]
[1739793855961,3.6173,2764.5,2764.0,4.71427]
[1739793856497,3.61703,2764.7,2764.1,3.61779]
[1739793856498,7.23418,2764.7,2764.1,3.61779]
[1739793856698,7.23418,2764.7,2764.0,4.7143]
[1739793856699,3.61703,2764.7,2764.0,4.7143]
[1739793857002,4.64179,2764.5,2764.0,1.0964]
[1739793857304,3.61768,2764.2,2763.8,8.87]
[1739793858208,3.6175,2764.4,2763.8,8.87]
[1739793858417,3.6175,2764.4,2763.8,12.48813]
[1739793858698,3.6175,2764.4,2763.9,3.61804]
[1739793860103,3.61771,2764.2,2763.8,8.87]
[1739793860306,3.6175,2764.4,2763.8,11.4585375]
[1739793860814,3.61768,2764.2,2763.8,11.4585375]
[1739793861307,3.61784,2764.1,2763.8,11.4585375]
[1739793861492,3.61784,2764.1,2763.8,2.5885375]
[1739793861810,3.6179,2764.1,2763.7,1.0666]
[1739793863000,0.0075,2764.4,2763.5,9.8843]
[1739793863206,3.61824,2763.8,2763.5,9.8843]
[1739793863562,3.61846,2763.6,2763.3,1.605614]
[1739793864000,3.61846,2763.6,2763.3,0.509014]
[1739793864188,7.23656,2763.8,2763.3,0.509014]
[1739793864392,3.61834,2763.7,2763.2,3.61897]
[1739793864793,3.61845,2763.7,2763.1,4.71572]
[1739793864994,3.61847,2763.6,2763.1,4.71572]
[1739793865194,3.61847,2763.6,2763.1,1.0966]
[1739793865393,3.61873,2763.4,2763.1,1.0966]
[1739793866310,4.69631,2763.5,2763.1,1.0966]
[1739793866492,1.0777,2763.5,2762.9,8.87]
[1739793866695,3.61879,2763.4,2762.9,8.87]
[1739793867001,4.69631,2763.5,2763.0,3.61921]
[1739793867303,3.61874,2763.4,2762.9,10.234174]
[1739793867508,3.61893,2763.3,2762.9,10.234174]
[1739793868028,3.61874,2763.4,2762.9,13.853554]
[1739793868406,7.23757,2763.4,2762.9,13.853554]
[1739793868618,3.61874,2763.4,2762.9,10.234174]
[1739793868932,3.61874,2763.4,2762.9,13.853544]
[1739793869830,3.61855,2763.6,2763.0,1.4905844]
[1739793870032,7.23712,2763.6,2763.1,3.619]
[1739793870521,3.6186,2763.5,2763.1,3.619]
[1739793870723,3.6186,2763.5,2763.0,5.1098344]
[1739793870925,3.61855,2763.6,2763.1,3.6191]
[1739793871954,3.61855,2763.6,2763.1,3.61903]
[1739793872088,3.6184,2763.7,2763.1,4.62834584]
[1739793872905,3.6186,2763.5,2763.1,4.62834584]
[1739793873218,3.61882,2763.4,2762.9,3.61937]
[1739793873919,3.61894,2763.3,2762.8,9.9223]
[1739793874248,3.61894,2763.3,2762.8,13.54179]
[1739793874947,3.61866,2763.5,2763.0,3.61918]
[1739793875247,3.61852,2763.6,2763.0,3.61918]
[1739793875454,3.61861,2763.5,2763.0,3.61918]
[1739793876649,4.74482,2763.7,2763.0,4.54787789]
[1739793876851,3.61813,2763.9,2763.2,3.61899]
[1739793877153,3.61821,2763.8,2763.3,3.61879]
[1739793877645,3.61835,2763.7,2763.3,3.61879]
[1739793878147,3.61804,2764.0,2763.3,3.61879]
[1739793878320,3.61821,2763.8,2763.3,4.7888065]
[1739793879222,7.23652,2763.8,2763.3,4.7888065]
[1739793879439,3.61821,2763.8,2763.3,4.7888065]
[1739793879605,3.61836,2763.7,2763.3,1.1700165]
[1739793880417,4.70623,2764.1,2763.4,3.61873]
[1739793880629,3.61801,2764.0,2763.5,3.61855]
[1739793880947,3.61801,2764.0,2763.6,1.0427]
[1739793881911,3.61809,2763.9,2763.6,1.0427]
[1739793882573,7.23626,2763.9,2763.6,1.0427]
[1739793882709,3.61809,2763.9,2763.6,1.0427]
[1739793882913,4.7062,2764.1,2763.6,1.0427]
[1739793883109,3.61775,2764.2,2763.7,3.61821]
[1739793883340,3.61707,2764.7,2763.7,3.61821]
[1739793883341,1.044,2764.5,2763.7,3.61833]
[1739793883556,3.61759,2764.3,2763.8,3.6182]
[1739793883857,3.61745,2764.4,2763.9,3.61797]
[1739793884054,4.68829,2765.2,2763.8,1.0726]
[1739793884255,3.6165,2765.1,2764.3,3.61753]
[1739793884439,1.89732433,2765.2,2764.4,3.6174]
[1739793884607,3.61684,2764.9,2764.4,3.6174]
[1739793885136,3.62379,2765.3,2764.6,3.61703]
[1739793885340,4.65634,2765.4,2764.8,3.6168]
[1739793885539,3.61614,2765.4,2764.9,1.0362]
[1739793885727,3.61625,2765.3,2764.9,1.0362]
[1739793886051,4.339329,2765.4,2764.9,1.0362]
[1739793886484,3.61626,2765.3,2764.9,1.0362]
[1739793886813,3.61636,2765.3,2764.9,1.0362]
[1739793887139,3.61666,2765.0,2764.7,1.0932]
[1739793887535,3.6169,2764.8,2764.5,1.0932]
[1739793887951,3.61703,2764.7,2764.2,12.48756]
[1739793888118,3.61724,2764.6,2764.2,9.9285]
[1739793888456,3.61754,2764.4,2764.0,1.0766]
[1739793888658,3.61769,2764.2,2764.0,1.0766]
[1739793888811,7.23504,2764.4,2764.0,1.0766]
[1739793889166,3.61772,2764.2,2764.0,1.0766]
[1739793889345,3.61732,2764.5,2764.0,1.0766]
[1739793889651,1.819519,2765.4,2764.2,1.0904]
[1739793889960,3.6171,2764.7,2764.2,1.0904]
[1739793890174,3.6171,2764.7,2764.2,4.70802]
[1739793890870,3.6168,2764.9,2764.3,3.61751]
[1739793891166,3.61654,2765.1,2764.6,1.1028]
[1739793891364,4.340573,2765.1,2764.6,1.1028]
[1739793891970,3.61672,2765.0,2764.6,1.1028]
[1739793893845,3.61676,2764.9,2764.6,1.1028]
[1739793894170,3.61676,2764.9,2764.3,1.1211]
[1739793894393,3.6171,2764.7,2764.3,1.1211]
[1739793894670,3.61756,2764.3,2764.0,1.1211]
[1739793894836,3.61738,2764.5,2764.0,1.1211]
[1739793895545,3.61737,2764.5,2764.0,1.1211]
[1739793896682,3.61709,2764.7,2764.0,1.1211]
[1739793897059,3.61727,2764.6,2764.0,4.73892]
[1739793897263,3.61727,2764.6,2764.0,1.1211]
[1739793897676,3.61744,2764.4,2764.0,1.1211]
[1739793897869,0.0075,2764.5,2763.8,5.33]
[1739793898043,3.61831,2763.8,2763.5,1.1211]
[1739793898467,3.61846,2763.6,2763.2,1.1211]
[1739793898867,3.61842,2763.7,2763.2,1.1211]
[1739793899350,3.61831,2763.8,2763.2,4.74008]
[1739793900187,3.61831,2763.8,2763.2,4.74001]
[1739793900488,0.272,2764.5,2763.7,0.2]
[1739793900684,3.61805,2764.0,2763.7,0.2]
[1739793900895,7.23611,2764.0,2763.7,0.2]
[1739793901111,3.61805,2764.0,2763.7,0.2]
[1739793901390,3.61809,2763.9,2763.7,0.2]
[1739793902487,3.61809,2763.9,2763.6,0.1]
[1739793902488,7.23628,2763.9,2763.6,0.1]
[1739793902689,0.0075,2763.8,2763.2,10.0911]
[1739793902852,3.61859,2763.6,2763.3,0.2]
[1739793903200,3.62578,2763.8,2763.3,0.2]
[1739793903402,3.61833,2763.7,2763.3,0.2]
[1739793903750,3.61834,2763.7,2763.3,0.2]
[1739793904462,3.62578,2763.8,2763.3,0.2]
[1739793904664,3.61834,2763.7,2763.3,0.2]
[1739793904969,3.6185,2763.6,2763.3,0.2]
[1739793905279,3.6189,2763.3,2762.9,0.2]
[1739793905764,3.61865,2763.5,2763.1,0.2]
[1739793906149,4.46816,2763.6,2763.1,0.3]
[1739793906982,3.61868,2763.5,2763.1,0.3]
[1739793907193,4.46816,2763.6,2763.1,3.91911]
[1739793907408,0.8497,2763.9,2763.3,1.1291]
[1739793907567,3.61829,2763.8,2763.3,4.74793]
[1739793908309,3.61829,2763.8,2763.3,1.1291]
[1739793908456,3.61842,2763.7,2763.3,1.1291]
[1739793908650,3.61857,2763.6,2763.3,1.1291]
[1739793909376,3.61857,2763.6,2763.1,4.99072]
[1739793909584,3.61857,2763.6,2763.1,1.3716]
[1739793909771,4.342253,2763.6,2763.1,1.3716]
[1739793909950,3.61866,2763.5,2763.1,1.3716]
[1739793910147,3.61881,2763.4,2763.1,1.3716]
[1739793910613,3.61866,2763.5,2763.1,1.3716]
[1739793910897,0.0075,2763.8,2763.1,1.3716]
[1739793911100,3.61827,2763.8,2763.3,0.1]
[1739793911447,4.46786,2763.9,2763.3,3.71882]
[1739793911852,3.61822,2763.8,2763.3,3.71882]
[1739793912113,0.8497,2764.1,2763.6,0.1]
[1739793912410,3.61799,2764.0,2763.6,1.0228]
[1739793912772,3.61763,2764.3,2763.7,3.71831]
[1739793913109,3.61763,2764.3,2763.9,0.2]
[1739793913322,3.6174,2764.5,2764.1,1.1165]
[1739793913601,3.6174,2764.5,2764.0,0.1]
[1739793913756,3.61758,2764.3,2764.0,0.1]
[1739793913953,3.61783,2764.1,2763.7,0.2]
[1739793914158,3.61814,2763.9,2763.7,0.2]
[1739793914389,3.61881,2763.4,2763.2,0.1]
[1739793914589,3.61853,2763.6,2763.2,0.1]
[1739793914789,3.61828,2763.8,2763.4,0.1]
[1739793915212,3.62519,2764.2,2763.7,0.1]
[1739793915415,0.8497,2764.3,2763.7,0.1]
[1739793915719,0.8497,2764.3,2763.9,0.1]
[1739793915720,3.61777,2764.2,2763.9,0.1]
[1739793915995,3.61776,2764.2,2763.9,0.1]
[1739793916167,3.61747,2764.4,2763.9,0.1]
[1739793916370,3.61766,2764.3,2763.9,0.3]
[1739793916991,3.61747,2764.4,2763.9,0.3]
[1739793917307,3.61763,2764.3,2763.9,0.3]
[1739793917512,3.6177,2764.2,2763.9,0.3]
[1739793917659,3.61747,2764.4,2763.9,0.3]
[1739793917864,3.61724,2764.6,2764.1,1.119]
[1739793918120,3.61713,2764.7,2764.1,1.319]
[1739793918322,3.61713,2764.7,2764.1,1.812703]
[1739793918461,3.61679,2764.9,2764.6,0.1]
[1739793918661,3.6169,2764.8,2764.6,0.1]
[1739793918861,3.61679,2764.9,2764.6,0.1]
[1739793918862,3.61679,2764.9,2764.6,1.1237]
[1739793919320,3.6169,2764.8,2764.6,1.1237]
[1739793920107,3.6169,2764.8,2764.4,1.1698]
[1739793921115,3.61658,2765.1,2764.6,0.1]
[1739793921274,3.6167,2765.0,2764.6,0.3]
[1739793921482,0.8497,2765.3,2764.6,0.3]
[1739793921483,3.61685,2764.9,2764.6,0.3]
[1739793922013,0.0075,2765.2,2764.6,0.3]
[1739793922175,4.47318,2765.5,2764.9,0.1]
[1739793922515,3.61588,2765.6,2765.2,0.1]
[1739793923024,3.61598,2765.5,2765.2,0.1]
[1739793923558,3.61566,2765.8,2765.2,0.1]
[1739793923761,0.18415559,2766.0,2765.6,0.1]
[1739793923762,3.61541,2766.0,2765.6,0.1]
[1739793924216,0.0075,2766.1,2765.6,0.1]
[1739793924378,1.53730229,2766.3,2765.8,0.1]
[1739793924725,1.53730229,2766.3,2766.0,0.1]
[1739793926227,1.53730229,2766.3,2766.2,0.1]
[1739793926590,1.53730229,2766.3,2766.2,9.25398013]
[1739793927388,1.53730229,2766.3,2766.2,1.4104]
[1739793927590,3.61457,2766.6,2766.4,0.1]
[1739793927842,3.61467,2766.5,2766.4,0.1]
[1739793928912,3.61493,2766.3,2766.2,1.4104]
[1739793929138,3.61493,2766.3,2766.2,0.1]
[1739793929452,3.61493,2766.3,2765.5,0.2]
[1739793929453,3.62309,2765.8,2765.5,0.2]
[1739793929597,3.62309,2765.8,2765.3,0.2]
[1739793929598,3.61611,2765.4,2765.3,0.2]
[1739793929803,3.61611,2765.4,2764.9,0.733383]
[1739793929804,3.6165,2765.1,2765.0,0.1]
[1739793930111,3.6165,2765.1,2764.9,0.933383]
[1739793930112,3.61702,2764.7,2764.5,9.9864]
[1739793930324,3.61715,2764.6,2764.5,1.1785142]
[1739793930634,3.6169,2764.8,2764.5,0.3]
[1739793930834,0.0075,2765.1,2764.5,0.3]
[1739793930835,3.61688,2764.9,2764.5,0.3]
[1739793931035,3.61712,2764.7,2764.5,0.3]
[1739793931202,3.61715,2764.6,2764.5,0.3]
[1739793931401,3.61742,2764.4,2764.3,0.1]
[1739793931642,3.61742,2764.4,2764.2,0.2]
[1739793931846,3.61755,2764.3,2764.2,0.2]
[1739793932052,3.61742,2764.4,2764.2,0.2]
[1739793932260,3.61719,2764.6,2764.4,0.2]
[1739793932456,3.61693,2764.8,2764.4,0.2]
[1739793932771,3.61693,2764.8,2764.6,0.1]
[1739793933167,3.61639,2765.2,2765.0,0.1]
[1739793933372,3.61624,2765.3,2765.0,0.3]
[1739793933665,3.61637,2765.2,2765.1,0.14939804]
[1739793933871,3.61615,2765.4,2765.1,0.14939804]
[1739793934169,3.61585,2765.6,2765.2,0.1]
[1739793934386,3.61585,2765.6,2765.5,0.2]
[1739793934595,0.0075,2766.0,2765.3,0.34939475]
[1739793934869,3.61611,2765.4,2765.1,0.3]
[1739793935077,3.61626,2765.3,2765.1,0.3]
[1739793935249,3.61611,2765.4,2765.1,0.3]
[1739793935479,3.61611,2765.4,2765.3,0.1]
[1739793937694,3.61602,2765.5,2765.3,0.1]
[1739793937998,3.61577,2765.7,2765.6,0.1]
[1739793938370,3.61588,2765.6,2765.4,1.5607]
[1739793938819,3.61552,2765.9,2765.4,1.5607]
[1739793939013,3.61552,2765.9,2765.6,0.1]
[1739793939217,3.61498,2766.3,2766.0,0.1]
[1739793939402,3.61498,2766.3,2766.1,0.2]
[1739793939703,3.56498,2766.3,2766.1,0.34932881]
[1739793940300,3.6148,2766.4,2766.3,0.1]
[1739793940501,3.6147,2766.5,2766.3,0.3]
[1739793940704,3.61448,2766.7,2766.3,0.44932552]
[1739793940918,3.61448,2766.7,2766.5,0.2]
[1739793941267,3.61441,2766.7,2766.6,0.14932058]
[1739793941684,3.61428,2766.8,2766.3,0.3]
[1739793941904,3.61455,2766.6,2766.3,0.3]
[1739793942105,3.61455,2766.6,2766.5,0.2]
[1739793942468,3.61455,2766.6,2766.3,0.3]
[1739793942708,3.6148,2766.4,2766.3,0.3]
[1739793944043,3.61504,2766.3,2766.1,0.2]
[1739793944232,3.61475,2766.5,2766.2,0.1]
[1739793944812,3.61488,2766.4,2766.2,0.1]
[1739793945017,3.61493,2766.3,2766.1,0.2]
[1739793945216,3.61532,2766.0,2765.9,0.3]
[1739793946018,3.61501,2766.3,2766.1,0.2]
[1739793946235,3.61506,2766.2,2766.1,0.2]
[1739793946691,3.61501,2766.3,2766.1,0.2]
[1739793946838,3.61506,2766.2,2766.1,0.2]
[1739793947836,3.61532,2766.0,2765.9,0.3]
[1739793948242,3.61514,2766.2,2766.1,0.2]
[1739793948445,3.61506,2766.2,2766.1,0.2]
[1739793948743,3.56506,2766.2,2766.1,0.2]
[1739793949540,3.56506,2766.2,2765.9,0.2]
[1739793949541,3.61532,2766.0,2765.9,0.2]
[1739793949742,3.61559,2765.8,2765.7,0.2]
[1739793949904,3.61523,2766.1,2765.7,0.2]
[1739793950112,3.61523,2766.1,2766.0,0.2]
[1739793950739,3.61545,2765.9,2765.8,0.2]
[1739793950935,3.61532,2766.1,2765.8,0.2]
[1739793951212,3.61519,2766.1,2766.0,0.2]
[1739793951842,3.61512,2766.2,2766.0,0.2]
[1739793952043,7.87034,2766.7,2766.1,0.1]
[1739793952209,3.61505,2766.3,2766.1,0.1]
[1739793952645,3.61481,2766.4,2766.1,0.1]
[1739793952854,3.61519,2766.1,2766.0,0.2]
[1739793953020,3.61454,2766.6,2765.9,0.1]
[1739793953021,0.0075,2766.5,2765.9,0.1]
[1739793953227,3.61532,2766.0,2765.9,0.1]
[1739793953640,3.6152,2766.1,2765.9,0.1]
[1739793953845,3.61495,2766.3,2765.9,0.1]
[1739793954024,3.61495,2766.3,2766.2,0.1]
[1739793954409,3.61495,2766.3,2766.2,0.24889891]
[1739793954644,3.61481,2766.4,2766.2,0.24889891]
[1739793955151,3.61441,2766.7,2766.4,0.1]
[1739793955355,3.61436,2766.8,2766.4,0.1]
[1739793955537,3.61454,2766.6,2766.5,0.34818229]
[1739793956051,3.61454,2766.6,2766.5,0.14818229]
[1739793956261,4.344935,2766.6,2766.5,0.14818229]
[1739793956445,3.6148,2766.4,2766.3,0.2]
[1739793957016,3.61468,2766.5,2766.3,0.2]
[1739793957425,7.22946,2766.5,2766.3,0.2]
[1739793957651,7.22945,2766.5,2766.3,0.2]
[1739793957952,3.6148,2766.4,2766.3,0.2]
[1739793958316,3.61468,2766.5,2766.4,0.1]
[1739793959214,3.61452,2766.7,2766.4,0.1]
[1739793959420,3.61449,2766.7,2766.5,0.2]
[1739793959616,0.0075,2766.9,2766.5,0.2]
[1739793959820,3.61454,2766.6,2766.5,0.2]
[1739793960656,3.61428,2766.8,2766.5,0.2]
[1739793960957,3.61428,2766.8,2766.7,0.2]
[1739793961160,3.61417,2766.9,2766.7,0.2]
[1739793961530,3.61428,2766.8,2766.7,0.2]
[1739793961765,3.61417,2766.9,2766.7,0.2]
[1739793961960,7.2284,2766.9,2766.7,0.2]
[1739793962151,3.61428,2766.8,2766.7,0.2]
[1739793962351,0.0075,2767.1,2766.7,0.2]
[1739793962559,3.6141,2767.0,2766.8,0.1]
[1739793962750,3.61415,2766.9,2766.8,0.1]
[1739793963160,3.61415,2766.9,2766.8,0.24778218]
[1739793963366,3.61415,2766.9,2766.8,0.1]
[1739793963567,3.61415,2766.9,2766.8,0.24778218]
[1739793963740,3.61415,2766.9,2766.8,0.1]
[1739793963940,3.61415,2766.9,2766.8,0.24778218]
[1739793964137,3.6141,2767.0,2766.8,0.24778218]
[1739793964466,1.84848119,2767.5,2767.2,0.1]
[1739793964626,1.84848119,2767.5,2767.4,0.1]
[1739793965053,1.84848119,2767.5,2767.4,4.36950687]
[1739793965262,3.61247,2768.2,2768.0,0.1]
[1739793965566,3.61284,2767.9,2767.8,0.1]
[1739793965766,7.22553,2768.0,2767.8,0.1]
[1739793966063,3.61284,2767.9,2767.8,0.1]
[1739793966265,3.61271,2768.0,2767.8,0.1]
[1739793966469,3.6125,2768.2,2767.8,0.1]
[1739793966642,3.6125,2768.2,2768.1,0.1]
[1739793967165,3.61269,2768.1,2767.9,1.2716]
[1739793967351,3.61271,2768.0,2767.9,0.1]
[1739793967558,3.61249,2768.2,2767.9,0.1]
[1739793967753,3.61268,2768.1,2767.9,0.1]
[1739793967958,3.61271,2768.0,2767.9,0.1]
[1739793968134,0.0075,2768.0,2767.5,0.3]
[1739793968332,3.61299,2767.8,2767.7,0.2]
[1739793968869,3.61256,2768.2,2767.8,0.1]
[1739793969195,3.61253,2768.2,2768.0,0.1]
[1739793969373,6.62771,2768.0,2767.9,0.14519028]
[1739793969531,3.61371,2767.3,2767.1,0.2]
[1739793969727,3.61371,2767.3,2767.1,0.3]
[1739793969968,0.0075,2767.6,2767.1,0.3]
[1739793970274,3.6135,2767.4,2767.3,0.2]
[1739793970444,4.8036,2767.4,2767.3,0.2]
[1739793970641,3.61337,2767.5,2767.3,0.3]
[1739793970871,3.6135,2767.4,2767.3,0.2]
[1739793971165,3.61337,2767.5,2767.3,0.3]
[1739793971366,3.61313,2767.7,2767.5,0.1]
[1739793971683,3.61285,2767.9,2767.7,0.1]
[1739793971839,4.100055,2767.9,2767.7,0.1]
[1739793972241,4.8718,2768.1,2767.8,0.2]
[1739793972568,3.61284,2767.9,2767.8,0.2]
[1739793973163,0.475733,2768.2,2767.8,0.2]
[1739793973494,3.61284,2767.9,2767.8,0.2]
[1739793973880,3.61271,2768.0,2767.8,0.2]
[1739793974696,0.73324791,2768.4,2768.1,0.1]
[1739793974697,3.61725,2768.4,2768.1,0.1]
[1739793974897,0.005,2768.4,2768.1,0.1]
[1739793975198,0.005,2768.4,2768.3,3.71232]
[1739793975499,0.005,2768.4,2768.3,4.585781]
[1739793975667,0.005,2768.4,2768.3,4.71573844]
[1739793975871,0.005,2768.4,2768.3,1.10341844]
[1739793976062,0.005,2768.4,2768.3,0.22995744]
[1739793976258,1.2028,2767.8,2766.3,1.1507]
[1739793976497,3.61414,2767.0,2766.8,0.1]
[1739793976799,3.61415,2766.9,2766.6,0.3]
[1739793976972,3.6135,2767.4,2766.9,0.1]
[1739793977371,3.61363,2767.3,2766.9,0.1]
[1739793977799,3.61339,2767.5,2767.2,0.1]
[1739793978031,3.79555294,2767.7,2767.4,0.1]
[1739793978032,0.18241294,2767.7,2767.4,0.1]
[1739793978164,0.18241294,2767.7,2767.3,0.2]
[1739793978165,3.61314,2767.7,2767.6,0.1]
[1739793978520,3.61314,2767.7,2767.3,0.2]
[1739793978521,3.61344,2767.5,2767.3,0.3]
[1739793978661,7.22692,2767.5,2767.3,0.2]
[1739793978858,3.6135,2767.4,2767.3,0.2]
[1739793979073,7.22693,2767.5,2767.3,0.2]
[1739793979275,3.61344,2767.5,2767.3,0.2]
[1739793979729,7.84183013,2767.6,2767.4,0.1]
[1739793980026,7.84187013,2767.6,2767.4,0.1]
[1739793980184,3.61336,2767.5,2767.4,0.1]
[1739793980588,7.84188013,2767.5,2767.4,0.1]
[1739793980808,3.61363,2767.3,2767.2,0.1]
[1739793981174,3.61376,2767.2,2767.1,0.2]
[1739793981475,3.61402,2767.0,2766.7,0.2]
[1739793981792,3.61454,2766.6,2766.5,0.1]
[1739793981986,7.84306013,2766.6,2766.5,0.1]
[1739793982815,7.84306013,2766.6,2766.5,0.21192387]
[1739793984130,8.23441964,2766.6,2766.5,0.11192387]
[1739793984303,3.61519,2766.1,2766.0,0.3]
[1739793984481,7.84371013,2766.1,2766.0,0.1]
[1739793984811,4.22852013,2766.1,2766.0,0.3]
[1739793985689,7.84371013,2766.1,2766.0,0.1]
[1739793986081,3.61509,2766.2,2766.0,0.3]
[1739793986378,4.22852013,2766.4,2766.2,0.1]
[1739793986580,4.22852013,2766.7,2766.4,0.1]
[1739793986891,4.22852013,2766.7,2766.2,0.2]
[1739793986892,3.61383,2767.2,2766.8,0.1]
[1739793987121,0.279,2767.5,2767.2,0.1]
[1739793987122,7.84195013,2767.5,2767.2,0.1]
[1739793987321,4.22852013,2767.5,2767.4,0.1]
[1739793987646,3.61327,2767.6,2767.4,0.3]
[1739793987822,7.84188013,2767.5,2767.4,0.2]
[1739793987978,3.61358,2767.4,2767.3,0.1]
[1739793988383,4.22852013,2767.5,2767.3,0.1]
[1739793988600,4.22852013,2767.5,2767.4,0.2]
[1739793989646,7.22631,2767.7,2767.5,0.1]
[1739793989807,3.61323,2767.6,2767.5,0.1]
[1739793990009,0.015,2767.7,2767.4,0.2]
[1739793990225,4.22852013,2767.5,2767.4,0.2]
[1739793990431,7.84188013,2767.5,2767.4,0.2]
[1739793990588,7.84188013,2767.5,2767.2,0.3]
[1739793990793,7.84188013,2767.5,2767.2,0.1]
[1739793990794,3.61363,2767.3,2767.2,0.1]
[1739793991012,3.61363,2767.3,2767.2,0.3]
[1739793992028,3.61376,2767.2,2766.9,0.3]
[1739793992229,3.61428,2766.8,2766.4,0.2]
[1739793992407,7.84319013,2766.5,2766.4,0.3]
[1739793992997,4.22852013,2766.5,2766.4,0.3]
[1739793993392,7.84319013,2766.5,2766.4,0.3]
[1739793994653,3.61467,2766.5,2766.4,0.3]
[1739793995098,3.61467,2766.5,2766.4,0.2]
[1739793995295,4.01196951,2766.5,2766.4,0.2]
[1739793995617,3.6298,2766.4,2766.3,0.2]
[1739793998611,3.6298,2766.4,2765.7,0.1]
[1739793998612,3.61559,2765.8,2765.7,0.1]
[1739793999007,3.61559,2765.8,2765.7,0.20569335]
[1739794001538,3.61559,2765.8,2765.7,0.1]
[1739794001719,9.80841413,2765.8,2765.7,0.20569335]
[1739794001927,9.80841413,2765.8,2765.7,0.1]
[1739794002440,9.80841413,2765.8,2765.7,0.20569335]
[1739794002640,3.61545,2765.9,2765.7,0.20569335]
[1739794002934,3.61545,2765.9,2765.8,0.10596766]
[1739794003351,3.61559,2765.8,2765.7,0.1]
[1739794005050,3.61545,2765.9,2765.7,0.1]
[1739794005255,3.61559,2765.8,2765.7,0.1]
[1739794008158,3.61536,2766.0,2765.9,0.1]
[1739794008457,3.61559,2765.8,2765.7,0.1]
[1739794008825,4.76769,2765.8,2765.7,0.1]
[1739794009043,8.99621013,2765.8,2765.7,0.1]
[1739794009833,8.99621013,2765.8,2765.6,0.2]
[1739794009834,3.61572,2765.7,2765.6,0.2]
[1739794010248,3.61572,2765.7,2765.6,0.30603667]
[1739794011259,3.99801951,2765.7,2765.6,0.30603667]
[1739794011568,3.61598,2765.5,2765.4,0.2]
[1739794011764,3.61598,2765.5,2765.2,0.2]
[1739794011765,0.0075,2765.5,2765.2,0.2]
[1739794011958,3.63124,2765.3,2765.2,0.2]
[1739794012460,3.6165,2765.1,2765.0,0.2]
[1739794013284,3.624,2765.1,2765.0,0.2]
[1739794013445,3.624,2765.1,2764.9,0.1]
[1739794013647,3.62413,2765.0,2764.9,0.1]
[1739794014666,3.62413,2765.0,2764.8,0.2]